Workbook

Sheet ORÇAMENTO
A1: <---- NUMERAR SERVIÇOS PARA CPU | C1: Ministério do Desenvolvimento Regional
C2: Companhia de Desenvolvimento dos Vales do São Francisco e do Parnaíba
C3: 1ª Superintendência Regional
B5: OBRA: | C5: PAVIMENTAÇÃO ASFÁLTICA EM CBUQ - VIAS DIVERSAS – BAIRRO MAJOR SALVO (CORINTO / MG)
B6: DATA: | C6: SETEMBRO / 2023 | G6: BDI Serviços: | I6: ='BDI SERV'!D31/100 -> 0.2332
B7: PRAZO DE EXECUÇÃO: 180 DIAS | G7: BDI Serviços: | I7: ='BDI FORN'!D31/100 -> 0.15
B8: ITEM | C8: DESCRIÇÃO | D8: REFER. | E8: UNID. | F8: QUANT. | G8: P. UNITÁRIO | H8: P.UNIT.C/ BDI | I8: P. TOTAL
A9: A | B9: 1 | C9: SERVIÇOS PRELIMINARES | I9: =SUM(I10:I14) -> 331226.01
A10: 1 | B10: 1.1 | C10: MOBILIZAÇÃO E DESMOBILIZAÇÃO | D10: CPU.1 | E10: GL | F10: 1 | G10: =VLOOKUP(A10,CPU!$A$1:$N$4668,9) -> 17758.32 | H10: =VLOOKUP(A10,CPU!$A$1:$N$4668,10) -> 21899.56 | I10: =ROUND(F10*H10,2) -> 21899.56 | O10: =I10-K10 -> 21899.56
A11: 2 | B11: 1.2 | C11: ADMINISTRAÇÃO LOCAL | D11: CPU.2 | E11: GL | F11: 1 | G11: =VLOOKUP(A11,CPU!$A$1:$N$4668,9) -> 193404.12 | H11: =VLOOKUP(A11,CPU!$A$1:$N$4668,10) -> 238505.96 | I11: =ROUND(F11*H11,2) -> 238505.96 | O11: 238505.96
A12: 3 | B12: 1.3 | C12: CANTEIRO DE OBRAS | D12: CPU.3 | E12: GL | F12: 3 | G12: =VLOOKUP(A12,CPU!$A$1:$N$4668,9) -> 13801.5 | H12: =VLOOKUP(A12,CPU!$A$1:$N$4668,10) -> 17020.01 | I12: =ROUND(F12*H12,2) -> 51060.03 | O12: 51060.03
A13: 4 | B13: 1.4 | C13: PLACA DE OBRA EM CHAPA DE AÇO GALVANIZADO | D13: 103689 | E13: M2 | F13: 9 | G13: =VLOOKUP(A13,CPU!$A$1:$N$4668,9) -> 339.72 | H13: =VLOOKUP(A13,CPU!$A$1:$N$4668,10) -> 418.94 | I13: =ROUND(F13*H13,2) -> 3770.46 | O13: 3770.46
A14: 5 | B14: 1.5 | C14: SERVIÇOS TOPOGRÁFICOS PARA PAVIMENTAÇÃO, INCLUSIVE NOTA DE SERVIÇO, ACOMPANHAMENTO E GREIDE | D14: 78472 | E14: M2 | F14: 39000 | G14: =VLOOKUP(A14,CPU!$A$1:$N$4668,9) -> 0.33 | H14: =VLOOKUP(A14,CPU!$A$1:$N$4668,10) -> 0.41 | I14: =ROUND(F14*H14,2) -> 15990 | O14: 15990
A15: B | B15: 2 | C15: TERRAPLANAGEM E PAVIMENTAÇÃO | I15: =SUM(I16:I22) -> 621389.3 | O15: 621389.3
A16: 6 | B16: 2.1 | C16: ESCAVAÇÃO HORIZONTAL EM SOLO DE 1A CATEGORIA | D16: 101116 | E16: M3 | F16: 5850 | G16: =VLOOKUP(A16,CPU!$A$1:$N$4668,9) -> 2.03 | H16: =VLOOKUP(A16,CPU!$A$1:$N$4668,10) -> 2.5 | I16: =ROUND(F16*H16,2) -> 14625 | O16: 14625
A17: 7 | B17: 2.2 | C17: CARGA, MANOBRA E DESCARGA DE SOLOS E MATERIAIS GRANULARES EM CAMINHÃO BASCULANTE | D17: 100976 | E17: M3 | F17: 5850 | G17: =VLOOKUP(A17,CPU!$A$1:$N$4668,9) -> 7.99 | H17: =VLOOKUP(A17,CPU!$A$1:$N$4668,10) -> 9.85 | I17: 57622.5 | O17: 57622.5
A18: 8 | B18: 2.3 | C18: REGULARIZAÇÃO E COMPACTAÇÃO DO SUBLEITO | D18: 100576 | E18: M2 | F18: 39000 | G18: =VLOOKUP(A18,CPU!$A$1:$N$4668,9) -> 2.53 | H18: =VLOOKUP(A18,CPU!$A$1:$N$4668,10) -> 3.12 | I18: 121680 | O18: 121680
A19: 9 | B19: 2.4 | C19: EXECUÇÃO E COMPACTAÇÃO DE BASE E OU SUB BASE PARA PAVIMENTAÇÃO DE SOLOS DE COMPORTAMENTO LATERÍTICO - EXCLUSIVE SOLO, ESCAVAÇÃO, CARGA E TRANSPORTE | D19: 96388 | E19: M3 | F19: 5850 | G19: =VLOOKUP(A19,CPU!$A$1:$N$4668,9) -> 11.61 | H19: =VLOOKUP(A19,CPU!$A$1:$N$4668,10) -> 14.32 | I19: 83772 | O19: 83772
A20: 10 | B20: 2.5 | C20: IMPRIMAÇÃO COM EMULSÃO ASFÁLTICA (EAI) | D20: 96401 | E20: M2 | F20: 39000 | G20: =VLOOKUP(A20,CPU!$A$1:$N$4668,9) -> 1.12 | H20: =VLOOKUP(A20,CPU!$A$1:$N$4668,10) -> 1.38 | I20: 53820 | O20: 53820
A21: 11 | B21: 2.6 | C21: PINTURA DE LIGAÇÃO COM EMULSÃO ASFÁLTICA RR-1C | D21: 96402 | E21: M2 | F21: 33500 | G21: =VLOOKUP(A21,CPU!$A$1:$N$4668,9) -> 0.93 | H21: =VLOOKUP(A21,CPU!$A$1:$N$4668,10) -> 1.15 | I21: 38525 | O21: 38525
A22: 12 | B22: 2.7 | C22: EXECUÇÃO DE PAVIMENTO COM APLICAÇÃO DE CONCRETO ASFÁLTICO USINADO A QUENTE (CBUQ), CAMADA DE ROLAMENTO - EXCLUSIVE TRANSPORTE | D22: 95995 | E22: M3 | F22: 1680 | G22: =VLOOKUP(A22,CPU!$A$1:$N$4668,9) -> 121.32 | H22: =VLOOKUP(A22,CPU!$A$1:$N$4668,10) -> 149.61 | I22: 251344.8 | O22: 251344.8
A23: C | B23: 3 | C23: TRANSPORTE DE MATERIAIS | I23: =SUM(I24:I27) -> 171736.99 | O23: 171736.99
A24: 13 | B24: 3.1 | C24: TRANSPORTE COM CAMINHÃO BASCULANTE, EM VIA URBANA PAVIMENTADA | D24: 95427 | E24: M3XKM | F24: 140000.0016 | G24: =VLOOKUP(A24,CPU!$A$1:$N$4668,9) -> 0.65 | H24: =VLOOKUP(A24,CPU!$A$1:$N$4668,10) -> 0.8 | I24: =ROUND(F24*H24,2) -> 112000 | O24: 112000
A25: 13.5 | B25: 3.2 | C25: TRANSPORTE COM CAMINHÃO BASCULANTE, EM VIA URBANA EM REVESTIMENTO PRIMÁRIO | D25: 95426 | E25: M3XKM | F25: 40000 | G25: =VLOOKUP(A25,CPU!$A$1:$N$4668,9) -> 0.96 | H25: =VLOOKUP(A25,CPU!$A$1:$N$4668,10) -> 1.18 | I25: =ROUND(F25*H25,2) -> 47200
A26: 14 | B26: 3.3 | C26: TRANSPORTE COM CAMINHÃO CARROCERIA 9T, EM VIA URBANA PAVIMENTADA | D26: 100947 | E26: TXKM | F26: 2099.996022 | G26: =VLOOKUP(A26,CPU!$A$1:$N$4668,9) -> 1.92 | H26: =VLOOKUP(A26,CPU!$A$1:$N$4668,10) -> 2.37 | I26: =ROUND(F26*H26,2) -> 4976.99 | O26: =I26-K26 -> 4976.99
A27: 15 | B27: 3.4 | C27: TRANSPORTE COM CAMINHÃO TANQUE DE TRANSPORTE DE MATERIAL ASFÁLTICO DE 30000 L, EM VIA URBANA PAVIMENTADA (BDI DIFERENCIADO) | D27: 102331 | E27: TXKM | F27: 14000 | G27: =VLOOKUP(A27,CPU!$A$1:$N$4668,9) -> 0.47 | H27: =VLOOKUP(A27,CPU!$A$1:$N$4668,10) -> 0.54 | I27: =ROUND(F27*H27,2) -> 7560 | O27: 7560
A28: D | B28: 4 | C28: OBRAS COMPLEMENTARES | I28: =SUM(I29:I32) -> 956198.17 | O28: 956198.17
A29: 16 | B29: 4.1 | C29: GUIA (MEIO-FIO) E SARJETA CONJUGADOS DE CONCRETO, MOLDADA IN LOCO COM EXTRUSORA, 45 CM BASE (15 CM BASE DA GUIA + 30 CM BASE DA SARJETA) X 22 CM ALTURA | D29: 94267 | E29: M | F29: 11200 | G29: =VLOOKUP(A29,CPU!$A$1:$N$4668,9) -> 57.37 | H29: =VLOOKUP(A29,CPU!$A$1:$N$4668,10) -> 70.75 | I29: =ROUND(F29*H29,2) -> 792400 | O29: 792400
A30: 17 | B30: 4.2 | C30: FORNECIMENTO E INSTALAÇÃO DE PLACA DE SINALIZAÇÃO VIÁRIA - REGULAMENTAÇÃO OCTOGONAL (PARE) 0,60MX0,60M | D30: CPU.4 | E30: UN. | F30: 45 | G30: =VLOOKUP(A30,CPU!$A$1:$N$4668,9) -> 444.59 | H30: =VLOOKUP(A30,CPU!$A$1:$N$4668,10) -> 548.27 | I30: =ROUND(F30*H30,2) -> 24672.15 | O30: 24672.15
A31: 18 | B31: 4.3 | C31: FORNECIMENTO E INSTALAÇÃO DE PLACA DE IDENTIFICACAO DE RUA EM CHAPA DE AÇO PINTADA COM PELÍCULA DE ALTA INTENSIDADE, 45 CM X 20 CM - INCLUSIVE SUPORTE DE MADEIRA, CONFORME PROJETO (02 PLACAS POR SUPORTE) | D31: CPU.5 | E31: UN. | F31: 45 | G31: =VLOOKUP(A31,CPU!$A$1:$N$4668,9) -> 436.34 | H31: =VLOOKUP(A31,CPU!$A$1:$N$4668,10) -> 538.09 | I31: =ROUND(F31*H31,2) -> 24214.05 | O31: 24214.05
A32: 19 | B32: 4.4 | C32: PINTURA DE EIXO VIÁRIO SOBRE ASFALTO COM TINTA RETRORREFLETIVA A BASE DE RESINA ACRÍLICA COM MICROESFERAS DE VIDRO, APLICAÇÃO MECÂNICA COM DEMARCADORA AUTOPROPELIDA | D32: 102512 | E32: M | F32: 16799.99571 | G32: =VLOOKUP(A32,CPU!$A$1:$N$4668,9) -> 5.55 | H32: =VLOOKUP(A32,CPU!$A$1:$N$4668,10) -> 6.84 | I32: =ROUND(F32*H32,2) -> 114911.97 | O32: 114911.97
A33: E | B33: 5 | C33: FORNECIMENTOS - MATERIAL ASFÁLTICO (BDI DIFERENCIADO) | I33: =SUM(I34:I36) -> 2863937.77 | O33: 2863937.77
A34: 20 | B34: 5.1 | C34: AQUISIÇÃO DE EMULSÃO ASFÁLTICA PARA IMPRIMAÇÃO (EAI) - EXCLUSIVE TRANSPORTE | D34: CPU.6 | E34: T | F34: 54 | G34: =VLOOKUP(A34,CPU!$A$1:$N$4668,9) -> 2307.59 | H34: =VLOOKUP(A34,CPU!$A$1:$N$4668,10) -> 2653.73 | I34: =ROUND(F34*H34,2) -> 143301.42 | O34: 143301.42
A35: 21 | B35: 5.2 | C35: AQUISIÇÃO DE EMULSAO ASFALTICA CATIONICA RR-1C - EXCLUSIVE TRANSPORTE | D35: CPU.7 | E35: T | F35: 15.995 | G35: =VLOOKUP(A35,CPU!$A$1:$N$4668,9) -> 2736.39 | H35: =VLOOKUP(A35,CPU!$A$1:$N$4668,10) -> 3146.85 | I35: =ROUND(F35*H35,2) -> 50333.87 | O35: 50333.87
A36: 22 | B36: 5.3 | C36: AQUISIÇÃO DE CONCRETO BETUMINOSO USINADO A QUENTE (CBUQ) PARA PAVIMENTACAO ASFALTICA, PADRAO DNIT, FAIXA C, COM CAP 50/70 - EXCLUSIVE TRANSPORTE | D36: CPU.8 | E36: T | F36: 4300.004 | G36: =VLOOKUP(A36,CPU!$A$1:$N$4668,9) -> 540 | H36: =VLOOKUP(A36,CPU!$A$1:$N$4668,10) -> 621 | I36: =ROUND(F36*H36,2) -> 2670302.48 | O36: 2670302.48
B37: TOTAL GERAL DA OBRA COM BDI | I37: =SUM(I9,I15,I23,I28,I33) -> 4944488.24 | O37: 4944488.24
O38: 0

Sheet CPU
A1: 1 | B1: CODEVASF | E1: COMPOSIÇÃO DE PREÇO UNITÁRIO | I1: =H11 -> 17758.32 | J1: =H13 -> 21899.56 | K1: BDI CALCULADO: | M1: =ORÇAMENTO!I6 -> 0.2332
B2: OBRA: | C2: =ORÇAMENTO!C5 -> PAVIMENTAÇÃO ASFÁLTICA EM CBUQ - VIAS DIVERSAS – BAIRRO MAJOR SALVO (CORINTO / MG) | G2: DATA: | H2: =ORÇAMENTO!C6 -> SETEMBRO / 2023 | K2: BDI DIFERENCIADO: | M2: ='BDI FORN'!D31/100 -> 0.15
B3: SERVIÇO: | C3: =VLOOKUP(A1,ORÇAMENTO!A10:I29,3) -> MOBILIZAÇÃO E DESMOBILIZAÇÃO | E3: Referência: | F3: CPU.1 | G3: UNIDADE: | H3: =VLOOKUP(A1,ORÇAMENTO!A10:I29,5) -> GL
B5: TIPO ITEM | C5: CODIGO ITEM | D5: DESCRIÇÃO ITEM | E5: UNIDADE ITEM | F5: COEFICIENTE | G5: PRECO UNITARIO | H5: CUSTO TOTAL
B6: COMPOSICAO | C6: 89876 | D6: CAMINHÃO BASCULANTE 14 M3, COM CAVALO MECÂNICO DE CAPACIDADE MÁXIMA DE TRAÇÃO COMBINADO DE 36000 KG, POTÊNCIA 286 CV, INCLUSIVE SEMIREBOQUE COM CAÇAMBA METÁLICA | E6: CHP DIURNO. | F6: 8 | G6: 286.2 | H6: =ROUNDDOWN(F6*G6,2) -> 2289.6
B7: COMPOSICAO | C7: 89877 | D7: CAMINHÃO BASCULANTE 14 M3, COM CAVALO MECÂNICO DE CAPACIDADE MÁXIMA DE TRAÇÃO COMBINADO DE 36000 KG, POTÊNCIA 286 CV, INCLUSIVE SEMIREBOQUE TRAÇÃO | E7: CHI DIURNO. | F7: 8 | G7: 82.81 | H7: =ROUNDDOWN(F7*G7,2) -> 662.48
B8: COMPOSICAO | C8: 5914640 | D8: TRANSPORTE COM CAVALO MECÂNICO COM SEMIRREBOQUE COM CAPACIDADE DE 30 T - RODOVIA PAVIMENTADA | E8: T.KM | F8: 9674 | G8: 0.58 | H8: =ROUNDDOWN(F8*G8,2) -> 5610.92
B9: COMPOSIÇÃO | C9: 88316 | D9: SERVENTE COM ENCARGOS COMPLEMENTARES | E9: H | F9: 16 | G9: 19.76 | H9: =ROUNDDOWN(F9*G9,2) -> 316.16
B10: PRODUÇÃO DA EQUIPE | E10: 0.5 | F10: CUSTO | H10: =SUM(H6:H9) -> 8879.16
B11: TOTAL | H11: =H10/E10 -> 17758.32 | I11: OK
B12: BDI % | H12: =1+$M$1 -> 1.2332
B13: TOTAL DO SERVIÇO - R$ | H13: =ROUND(H11*H12,2) -> 21899.56
A15: =A1+1 -> 2 | B15: CODEVASF | E15: COMPOSIÇÃO DE PREÇO UNITÁRIO | I15: =H30 -> 193404.12 | J15: =H32 -> 238505.96
B16: OBRA: | C16: =$C$2 -> PAVIMENTAÇÃO ASFÁLTICA EM CBUQ - VIAS DIVERSAS – BAIRRO MAJOR SALVO (CORINTO / MG) | G16: DATA: | H16: =$H$2 -> SETEMBRO / 2023
B17: SERVIÇO: | C17: =VLOOKUP(A15,ORÇAMENTO!$A$10:$I$29,3) -> ADMINISTRAÇÃO LOCAL | E17: SINAPI | F17: CPU.2 | G17: UNIDADE: | H17: =VLOOKUP(A15,ORÇAMENTO!$A$10:$I$29,5) -> GL
B19: TIPO ITEM | C19: CODIGO ITEM | D19: DESCRIÇÃO ITEM | E19: UNIDADE ITEM | F19: COEFICIENTE | G19: PRECO UNITARIO | H19: CUSTO TOTAL
B20: INSUMO | C20: 14250 | D20: ENERGIA ELÉTRICA | E20: kwh | F20: 60 | G20: 0.95 | H20: =ROUNDDOWN(F20*G20,2) -> 57
B21: INSUMO | C21: 44480 | D21: TARIFA FORNECIMENTO DE ÁGUA/ESGOTO | E21: M3 | F21: 6 | G21: 17.97 | H21: 107.82
B22: COTAÇÃO | C22: MERC. | D22: TELEFONE (PLANO CONTROLE) | E22: UNID | F22: 2 | G22: 59.9 | H22: 119.8
B23: INSUMO | C23: ED-50155 SEINFRA | D23: BANHEIRO QUÍMICO 110 X 120 X 230 CM COM MANUTENÇÃO (CONSIDERANDO OBRAS SIMULTÂNEAS) | E23: MÊS | F23: 2 | G23: 820 | H23: 1640
B24: COMPOSICAO | C24: 90777 | D24: Engenheiro Civil Júnior com encargos complementares | E24: H | F24: 55 | G24: 114.12 | H24: 6276.6
B25: COMPOSICAO | C25: 90776 | D25: Encarregado Geral com encargos complementares | E25: H | F25: 220 | G25: 57.73 | H25: 12700.6
B26: COMPOSICAO | C26: 88321 | D26: Tecnico de Laboratório com encargos complementares | E26: H | F26: 110 | G26: 45.45 | H26: 4999.5
B27: COMPOSICAO | C27: 100309 | D27: Tecnico em Segurança do Trabalho com encargos complementares | E27: H | F27: 110 | G27: 45.71 | H27: 5028.1
B28: COMPOSICAO | C28: 90772 | D28: Auxiliar de escritório com encargos complementares | E28: H | F28: 55 | G28: 23.72 | H28: 1304.6
B29: PRODUÇÃO DA EQUIPE | E29: =1/6 -> 0.1666666667 | F29: CUSTO | H29: =SUM(H20:H28) -> 32234.02
B30: TOTAL | H30: =ROUND(H29/E29,2) -> 193404.12 | I30: OK
B31: BDI % | H31: =1+$M$1 -> 1.2332
B32: TOTAL DO SERVIÇO - R$ | H32: =ROUND(H30*H31,2) -> 238505.96
A34: =A15+1 -> 3 | B34: CODEVASF | E34: COMPOSIÇÃO DE PREÇO UNITÁRIO | I34: =H44 -> 13801.5 | J34: =H46 -> 17020.01
B35: OBRA: | C35: =$C$2 -> PAVIMENTAÇÃO ASFÁLTICA EM CBUQ - VIAS DIVERSAS – BAIRRO MAJOR SALVO (CORINTO / MG) | G35: DATA: | H35: =$H$2 -> SETEMBRO / 2023
B36: SERVIÇO: | C36: =VLOOKUP(A34,ORÇAMENTO!$A$10:$I$29,3) -> CANTEIRO DE OBRAS | E36: SINAPI | F36: =VLOOKUP(A34,ORÇAMENTO!$A$10:$I$29,4) -> CPU.3 | G36: UNIDADE: | H36: =VLOOKUP(A34,ORÇAMENTO!$A$10:$I$29,5) -> GL
B38: TIPO ITEM | C38: CODIGO ITEM | D38: DESCRIÇÃO ITEM | E38: UNIDADE ITEM | F38: COEFICIENTE | G38: PRECO UNITARIO | H38: CUSTO TOTAL
B39: INSUMO | C39: 10775 | D39: LOCACAO DE CONTAINER COM 1 SANITARIO, PARA ESCRITORIO,COMPLETO, SEM DIVISORIAS INTERNAS | E39: MÊS | F39: 6 | G39: 995 | H39: =ROUNDDOWN(F39*G39,2) -> 5970
B40: INSUMO | C40: 10779 | D40: LOCACAO DE CONTAINER P/ SANITARIO, C/ 5 BACIAS, 1 LAVATORIO E 4 MICTORIOS | E40: MÊS | F40: 6 | G40: 1243.75 | H40: 7462.5
B41: INSUMO | C41: 37525 | D41: TELA PLASTICA TECIDA LISTRADA BRANCA E LARANJA, TIPO GUARDA CORPO, EM POLIETILENO MONOFILADO, ROLO 1,20 X 50 M (L X C) | E41: M | F41: 100 | G41: 3.69 | H41: 369
H42: 0
B43: PRODUÇÃO DA EQUIPE | E43: 1 | F43: CUSTO | H43: =SUM(H39:H42) -> 13801.5
B44: TOTAL | H44: =H43/E43 -> 13801.5 | I44: OK
B45: BDI % | H45: =1+$M$1 -> 1.2332
B46: TOTAL DO SERVIÇO - R$ | H46: =ROUND(H44*H45,2) -> 17020.01
A48: =A34+1 -> 4 | B48: CODEVASF | E48: COMPOSIÇÃO DE PREÇO UNITÁRIO | I48: =H62 -> 339.72 | J48: =H64 -> 418.94
B49: OBRA: | C49: =$C$2 -> PAVIMENTAÇÃO ASFÁLTICA EM CBUQ - VIAS DIVERSAS – BAIRRO MAJOR SALVO (CORINTO / MG) | G49: DATA: | H49: =$H$2 -> SETEMBRO / 2023
B50: SERVIÇO: | C50: =VLOOKUP(A48,ORÇAMENTO!$A$10:$I$29,3) -> PLACA DE OBRA EM CHAPA DE AÇO GALVANIZADO | E50: SINAPI | F50: =VLOOKUP(A48,ORÇAMENTO!$A$10:$I$29,4) -> 103689 | G50: UNIDADE: | H50: =VLOOKUP(A48,ORÇAMENTO!$A$10:$I$29,5) -> M2
B52: TIPO ITEM | C52: CODIGO ITEM | D52: DESCRIÇÃO ITEM | E52: UNIDADE ITEM | F52: COEFICIENTE | G52: PRECO UNITARIO | H52: CUSTO TOTAL
B53: INSUMO | C53: 4509 | D53: SARRAFO *2,5 X 10* CM EM PINUS, MISTA OU EQUIVALENTE DA REGIAO - BRUTA | E53: M | F53: 3,2083000 | G53: 4,41 | H53: =ROUNDDOWN(F53*G53,2) -> 14.14
B54: INSUMO | C54: 4813 | D54: PLACA DE OBRA (PARA CONSTRUCAO CIVIL) EM CHAPA GALVANIZADA *N. 22*, ADESIVADA, DE *2,4 X 1,2* M (SEM POSTES PARA FIXACAO) | E54: M2 | F54: 1,0000000 | G54: 250,00 | H54: 250
B55: INSUMO | C55: 5065 | D55: PREGO DE ACO POLIDO COM CABECA 10 X 10 | E55: KG | F55: 0,0113000 | G55: 36,57 | H55: 0.41
B56: INSUMO | C56: 5069 | D56: PREGO DE ACO POLIDO COM CABECA 17 X 27 | E56: KG | F56: 0,0132000 | G56: 19,59 | H56: 0.25
B57: COMPOSICAO | C57: 88262 | D57: CARPINTEIRO DE FORMAS COM ENCARGOS COMPLEMENTARES | E57: H | F57: 0,3729000 | G57: 27,05 | H57: 10.08
B58: COMPOSICAO | C58: 88316 | D58: SERVENTE COM ENCARGOS COMPLEMENTARES | E58: H | F58: 1,1186000 | G58: 19,76 | H58: 22.1
B59: COMPOSICAO | C59: 4115 | D59: MADEIRA ROLICA TRATADA, D = 12 A 15 CM, H = 3,00 M, EM EUCALIPTO OU EQUIVALENTE | E59: M | F59: 2 | G59: 21.37 | H59: 42.74
H60: 0
B61: PRODUÇÃO DA EQUIPE | E61: 1 | F61: CUSTO | H61: =SUM(H53:H60) -> 339.72
B62: TOTAL | H62: =H61/E61 -> 339.72 | I62: OK
B63: BDI % | H63: =1+$M$1 -> 1.2332
B64: TOTAL DO SERVIÇO - R$ | H64: =ROUND(H62*H63,2) -> 418.94
A66: =A48+1 -> 5 | B66: CODEVASF | E66: COMPOSIÇÃO DE PREÇO UNITÁRIO | I66: =H78 -> 0.33 | J66: =H80 -> 0.41
B67: OBRA: | C67: =$C$2 -> PAVIMENTAÇÃO ASFÁLTICA EM CBUQ - VIAS DIVERSAS – BAIRRO MAJOR SALVO (CORINTO / MG) | G67: DATA: | H67: =$H$2 -> SETEMBRO / 2023
B68: SERVIÇO: | C68: =VLOOKUP(A66,ORÇAMENTO!$A$10:$I$29,3) -> SERVIÇOS TOPOGRÁFICOS PARA PAVIMENTAÇÃO, INCLUSIVE NOTA DE SERVIÇO, ACOMPANHAMENTO E GREIDE | E68: SINAPI | F68: =VLOOKUP(A66,ORÇAMENTO!$A$10:$I$29,4) -> 78472 | G68: UNIDADE: | H68: =VLOOKUP(A66,ORÇAMENTO!$A$10:$I$29,5) -> M2
B70: TIPO ITEM | C70: CODIGO ITEM | D70: DESCRIÇÃO ITEM | E70: UNIDADE ITEM | F70: COEFICIENTE | G70: PRECO UNITARIO | H70: CUSTO TOTAL
B71: COMPOSICAO | C71: 88253 | D71: AUXILIAR DE TOPÓGRAFO COM ENCARGOS COMPLEMENTARES | E71: H | F71: 0.0025 | G71: 21.57 | H71: =ROUNDDOWN(F71*G71,2) -> 0.05
B72: COMPOSICAO | C72: 88288 | D72: NIVELADOR COM ENCARGOS COMPLEMENTARES | E72: H | F72: 0.0025 | G72: 26.99 | H72: =ROUNDDOWN(F72*G72,2) -> 0.06
B73: COMPOSICAO | C73: 88316 | D73: SERVENTE COM ENCARGOS COMPLEMENTARES | E73: H | F73: 0.0075 | G73: 19.76 | H73: 0.14
B74: COMPOSICAO | C74: 88597 | D74: DESENHISTA DETALHISTA COM ENCARGOS COMPLEMENTARES | E74: H | F74: 0.002 | G74: 29.72 | H74: 0.05
B75: COMPOSICAO | C75: 92145 | D75: CAMINHONETE CABINE SIMPLES COM MOTOR 1.6 FLEX, CÂMBIO MANUAL, POTÊNCIA 101/104 CV, 2 PORTAS | E75: CHP | F75: 0.0005 | G75: 73.33 | H75: 0.03
H76: =ROUNDDOWN(F76*G76,2) -> 0
B77: PRODUÇÃO DA EQUIPE | E77: 1 | F77: CUSTO | H77: =SUM(H71:H76) -> 0.33
B78: TOTAL | H78: =H77/E77 -> 0.33 | I78: OK
B79: BDI % | H79: =1+$M$1 -> 1.2332
B80: TOTAL DO SERVIÇO - R$ | H80: =ROUND(H78*H79,2) -> 0.41
A82: =A66+1 -> 6 | B82: CODEVASF | E82: COMPOSIÇÃO DE PREÇO UNITÁRIO | I82: =H91 -> 2.03 | J82: =H93 -> 2.5
B83: OBRA: | C83: =$C$2 -> PAVIMENTAÇÃO ASFÁLTICA EM CBUQ - VIAS DIVERSAS – BAIRRO MAJOR SALVO (CORINTO / MG) | G83: DATA: | H83: =$H$2 -> SETEMBRO / 2023
B84: SERVIÇO: | C84: =VLOOKUP(A82,ORÇAMENTO!$A$10:$I$29,3) -> ESCAVAÇÃO HORIZONTAL EM SOLO DE 1A CATEGORIA | E84: SINAPI | F84: =VLOOKUP(A82,ORÇAMENTO!$A$10:$I$29,4) -> 101116 | G84: UNIDADE: | H84: =VLOOKUP(A82,ORÇAMENTO!$A$10:$I$29,5) -> M3
B86: TIPO ITEM | C86: CODIGO ITEM | D86: DESCRIÇÃO ITEM | E86: UNIDADE ITEM | F86: COEFICIENTE | G86: PRECO UNITARIO | H86: CUSTO TOTAL
B87: COMPOSICAO | C87: 5847 | D87: TRATOR DE ESTEIRAS, POTÊNCIA 170 HP, PESO OPERACIONAL 19 T, CAÇAMBA 5,2 M3 | E87: CHP | F87: 0,0048000 | G87: 231,82 | H87: =ROUNDDOWN(F87*G87,2) -> 1.11
B88: COMPOSICAO | C88: 5849 | D88: TRATOR DE ESTEIRAS, POTÊNCIA 170 HP, PESO OPERACIONAL 19 T, CAÇAMBA 5,2 M3 | E88: CHI | F88: 0,0082000 | G88: 82,14 | H88: =ROUNDDOWN(F88*G88,2) -> 0.67
B89: COMPOSICAO | C89: 88316 | D89: SERVENTE COM ENCARGOS COMPLEMENTARES | E89: H | F89: 0,0131000 | G89: 19,76 | H89: =ROUNDDOWN(F89*G89,2) -> 0.25
B90: PRODUÇÃO DA EQUIPE | E90: 1 | F90: CUSTO | H90: =SUM(H87:H89) -> 2.03
B91: TOTAL | H91: =H90/E90 -> 2.03 | I91: OK
B92: BDI % | H92: =1+$M$1 -> 1.2332
B93: TOTAL DO SERVIÇO - R$ | H93: =ROUND(H91*H92,2) -> 2.5
A95: 7 | B95: CODEVASF | E95: COMPOSIÇÃO DE PREÇO UNITÁRIO | I95: =H105 -> 7.99 | J95: =H107 -> 9.85
B96: OBRA: | C96: =$C$2 -> PAVIMENTAÇÃO ASFÁLTICA EM CBUQ - VIAS DIVERSAS – BAIRRO MAJOR SALVO (CORINTO / MG) | G96: DATA: | H96: =$H$2 -> SETEMBRO / 2023
B97: SERVIÇO: | C97: =VLOOKUP(A95,ORÇAMENTO!$A$10:$I$29,3) -> CARGA, MANOBRA E DESCARGA DE SOLOS E MATERIAIS GRANULARES EM CAMINHÃO BASCULANTE | E97: SINAPI | F97: =VLOOKUP(A95,ORÇAMENTO!$A$10:$I$29,4) -> 100976 | G97: UNIDADE: | H97: =VLOOKUP(A95,ORÇAMENTO!$A$10:$I$29,5) -> M3
B99: TIPO ITEM | C99: CODIGO ITEM | D99: DESCRIÇÃO ITEM | E99: UNIDADE ITEM | F99: COEFICIENTE | G99: PRECO UNITARIO | H99: CUSTO TOTAL
B100: COMPOSICAO | C100: 5940 | D100: PÁ CARREGADEIRA SOBRE RODAS, POTÊNCIA LÍQUIDA 128 HP, CAPACIDADE DA CAÇAMBA 1,7 A 2,8 M3, PESO OPERACIONAL 11632 KG | E100: CHP | F100: 0,0083000 | G100: 205,93 | H100: =ROUNDDOWN(F100*G100,2) -> 1.7
B101: COMPOSICAO | C101: 5942 | D101: PÁ CARREGADEIRA SOBRE RODAS, POTÊNCIA LÍQUIDA 128 HP, CAPACIDADE DA CAÇAMBA 1,7 A 2,8 M3, PESO OPERACIONAL 11632 KG | E101: CHI | F101: 0,0074000 | G101: 90,02 | H101: =ROUNDDOWN(F101*G101,2) -> 0.66
B102: COMPOSICAO | C102: 89883 | D102: CAMINHÃO BASCULANTE 18 M3, COM CAVALO MECÂNICO DE CAPACIDADE MÁXIMA DE TRAÇÃO COMBINADO DE 45000 KG, POTÊNCIA 330 CV, INCLUSIVE SEMIREBOQUE COM CAÇAMBA METÁLICA | E102: CHP | F102: 0.0153 | G102: 314,64 | H102: =ROUNDDOWN(F102*G102,2) -> 4.81
B103: COMPOSICAO | C103: 89884 | D103: CAMINHÃO BASCULANTE 18 M3, COM CAVALO MECÂNICO DE CAPACIDADE MÁXIMA DE TRAÇÃO COMBINADO DE 45000 KG, POTÊNCIA 330 CV, INCLUSIVE SEMIREBOQUE COM CAÇAMBA METÁLICA | E103: CHI | F103: 0,0095000 | G103: 86,36 | H103: =ROUNDDOWN(F103*G103,2) -> 0.82
B104: PRODUÇÃO DA EQUIPE | E104: 1 | F104: CUSTO | H104: =SUM(H100:H103) -> 7.99
B105: TOTAL | H105: =H104/E104 -> 7.99 | I105: OK
B106: BDI % | H106: =1+$M$1 -> 1.2332
B107: TOTAL DO SERVIÇO - R$ | H107: =ROUND(H105*H106,2) -> 9.85
A109: 8 | B109: CODEVASF | E109: COMPOSIÇÃO DE PREÇO UNITÁRIO | I109: =H123 -> 2.53 | J109: =H125 -> 3.12
B110: OBRA: | C110: =$C$2 -> PAVIMENTAÇÃO ASFÁLTICA EM CBUQ - VIAS DIVERSAS – BAIRRO MAJOR SALVO (CORINTO / MG) | G110: DATA: | H110: =$H$2 -> SETEMBRO / 2023
B111: SERVIÇO: | C111: =VLOOKUP(A109,ORÇAMENTO!$A$10:$I$29,3) -> REGULARIZAÇÃO E COMPACTAÇÃO DO SUBLEITO | E111: SINAPI | F111: =VLOOKUP(A109,ORÇAMENTO!$A$10:$I$29,4) -> 100576 | G111: UNIDADE: | H111: M2
B113: TIPO ITEM | C113: CODIGO ITEM | D113: DESCRIÇÃO ITEM | E113: UNIDADE ITEM | F113: COEFICIENTE | G113: PRECO UNITARIO | H113: CUSTO TOTAL
B114: COMPOSICAO | C114: 5901 | D114: CAMINHÃO PIPA 10.000 L TRUCADO, PESO BRUTO TOTAL 23.000 KG, CARGA ÚTIL MÁXIMA 15.935 KG, DISTÂNCIA ENTRE EIXOS 4,8 M, POTÊNCIA 230 CV, INCLUSIVE TANQUE DE AÇO PARA TRANSPORTE DE ÁGUA | E114: CHP | F114: 0,0010000 | G114: 264,71 | H114: =ROUNDDOWN(F114*G114,2) -> 0.26
B115: COMPOSICAO | C115: 5903 | D115: CAMINHÃO PIPA 10.000 L TRUCADO, PESO BRUTO TOTAL 23.000 KG, CARGA ÚTIL MÁXIMA 15.935 KG, DISTÂNCIA ENTRE EIXOS 4,8 M, POTÊNCIA 230 CV, INCLUSIVE TANQUE DE AÇO PARA TRANSPORTE DE ÁGUA | E115: CHI | F115: 0,0070000 | G115: 67,26 | H115: 0.47
B116: COMPOSICAO | C116: 5932 | D116: MOTONIVELADORA POTÊNCIA BÁSICA LÍQUIDA (PRIMEIRA MARCHA) 125 HP, PESO BRUTO 13032 KG, LARGURA DA LÂMINA DE 3,7 M | E116: CHP | F116: 0,0001000 | G116: 244,89 | H116: 0.02
B117: COMPOSICAO | C117: 5934 | D117: MOTONIVELADORA POTÊNCIA BÁSICA LÍQUIDA (PRIMEIRA MARCHA) 125 HP, PESO BRUTO 13032 KG, LARGURA DA LÂMINA DE 3,7 M | E117: CHI | F117: 0,0080000 | G117: 101,62 | H117: 0.81
B118: COMPOSICAO | C118: 73436 | D118: ROLO COMPACTADOR VIBRATÓRIO PÉ DE CARNEIRO PARA SOLOS, POTÊNCIA 80 HP, PESO OPERACIONAL SEM/COM LASTRO 7,4 / 8,8 T, LARGURA DE TRABALHO 1,68 M | E118: CHP | F118: 0,0020000 | G118: 210,75 | H118: 0.42
B119: COMPOSICAO | C119: 88316 | D119: SERVENTE COM ENCARGOS COMPLEMENTARES | E119: H | F119: 0,0080000 | G119: 19,76 | H119: 0.15
B120: COMPOSICAO | C120: 93244 | D120: ROLO COMPACTADOR VIBRATÓRIO PÉ DE CARNEIRO PARA SOLOS, POTÊNCIA 80 HP, PESO OPERACIONAL SEM/COM LASTRO 7,4 / 8,8 T, LARGURA DE TRABALHO 1,68 M | E120: CHI | F120: 0,0060000 | G120: 66,89 | H120: 0.4
B122: PRODUÇÃO DA EQUIPE | E122: 1 | F122: CUSTO | H122: =SUM(H114:H121) -> 2.53
B123: TOTAL | H123: =H122/E122 -> 2.53 | I123: OK
B124: BDI % | H124: =1+$M$1 -> 1.2332
B125: TOTAL DO SERVIÇO - R$ | H125: =ROUND(H123*H124,2) -> 3.12
A127: 9 | B127: CODEVASF | E127: COMPOSIÇÃO DE PREÇO UNITÁRIO | I127: =H143 -> 11.61 | J127: =H145 -> 14.32
B128: OBRA: | C128: =$C$2 -> PAVIMENTAÇÃO ASFÁLTICA EM CBUQ - VIAS DIVERSAS – BAIRRO MAJOR SALVO (CORINTO / MG) | G128: DATA: | H128: =$H$2 -> SETEMBRO / 2023
B129: SERVIÇO: | C129: =VLOOKUP(A127,ORÇAMENTO!$A$10:$I$29,3) -> EXECUÇÃO E COMPACTAÇÃO DE BASE E OU SUB BASE PARA PAVIMENTAÇÃO DE SOLOS DE COMPORTAMENTO LATERÍTICO - EXCLUSIVE SOLO, ESCAVAÇÃO, CARGA E TRANSPORTE | E129: SINAPI | F129: =VLOOKUP(A127,ORÇAMENTO!$A$10:$I$29,4) -> 96388 | G129: UNIDADE: | H129: =VLOOKUP(A127,ORÇAMENTO!$A$10:$I$29,5) -> M3
B131: TIPO ITEM | C131: CODIGO ITEM | D131: DESCRIÇÃO ITEM | E131: UNIDADE ITEM | F131: COEFICIENTE | G131: PRECO UNITARIO | H131: CUSTO TOTAL
B132: COMPOSICAO | C132: 5684 | D132: ROLO COMPACTADOR VIBRATÓRIO DE UM CILINDRO AÇO LISO, POTÊNCIA 80 HP, PESO OPERACIONAL MÁXIMO 8,1 T, IMPACTO DINÂMICO 16,15 / 9,5 T, LARGURA DE TRABALHO 1,68 M | E132: CHP | F132: 0,0030000 | G132: 148,46 | H132: =ROUNDDOWN(F132*G132,2) -> 0.44
B133: COMPOSICAO | C133: 5685 | D133: ROLO COMPACTADOR VIBRATÓRIO DE UM CILINDRO AÇO LISO, POTÊNCIA 80 HP, PESO OPERACIONAL MÁXIMO 8,1 T, IMPACTO DINÂMICO 16,15 / 9,5 T, LARGURA DE TRABALHO 1,68 M | E133: CHI | F133: 0,0230000 | G133: 65,46 | H133: 1.5
B134: COMPOSICAO | C134: 5901 | D134: CAMINHÃO PIPA 10.000 L TRUCADO, PESO BRUTO TOTAL 23.000 KG, CARGA ÚTIL MÁXIMA 15.935 KG, DISTÂNCIA ENTRE EIXOS 4,8 M, POTÊNCIA 230 CV, INCLUSIVE TANQUE DE AÇO PARA TRANSPORTE DE ÁGUA | E134: CHP | F134: 0,0040000 | G134: 264,71 | H134: 1.05
B135: COMPOSICAO | C135: 5903 | D135: CAMINHÃO PIPA 10.000 L TRUCADO, PESO BRUTO TOTAL 23.000 KG, CARGA ÚTIL MÁXIMA 15.935 KG, DISTÂNCIA ENTRE EIXOS 4,8 M, POTÊNCIA 230 CV, INCLUSIVE TANQUE DE AÇO PARA TRANSPORTE DE ÁGUA | E135: CHI | F135: 0,0220000 | G135: 67,26 | H135: 1.47
B136: COMPOSICAO | C136: 5932 | D136: MOTONIVELADORA POTÊNCIA BÁSICA LÍQUIDA (PRIMEIRA MARCHA) 125 HP, PESO BRUTO 13032 KG, LARGURA DA LÂMINA DE 3,7 M | E136: CHP | F136: 0,0080000 | G136: 244,89 | H136: 1.95
B137: COMPOSICAO | C137: 5934 | D137: MOTONIVELADORA POTÊNCIA BÁSICA LÍQUIDA (PRIMEIRA MARCHA) 125 HP, PESO BRUTO 13032 KG, LARGURA DA LÂMINA DE 3,7 M | E137: CHI | F137: 0,0190000 | G137: 101,62 | H137: 1.93
B138: COMPOSICAO | C138: 88316 | D138: SERVENTE COM ENCARGOS COMPLEMENTARES | E138: H | F138: 0,0260000 | G138: 19,76 | H138: 0.51
B139: COMPOSICAO | C139: 96463 | D139: ROLO COMPACTADOR DE PNEUS, ESTATICO, PRESSAO VARIAVEL, POTENCIA 110 HP, PESO SEM/COM LASTRO 10,8/27 T, LARGURA DE ROLAGEM 2,30 M | E139: CHP | F139: 0,0040000 | G139: 203,13 | H139: 0.81
B140: COMPOSICAO | C140: 96464 | D140: ROLO COMPACTADOR DE PNEUS, ESTATICO, PRESSAO VARIAVEL, POTENCIA 110 HP, PESO SEM/COM LASTRO 10,8/27 T, LARGURA DE ROLAGEM 2,30 M | E140: CHI | F140: 0,0220000 | G140: 89,07 | H140: 1.95
H141: 0
B142: PRODUÇÃO DA EQUIPE | E142: 1 | F142: CUSTO | H142: =SUM(H132:H141) -> 11.61
B143: TOTAL | H143: =H142/E142 -> 11.61 | I143: OK
B144: BDI % | H144: =1+$M$1 -> 1.2332
B145: TOTAL DO SERVIÇO - R$ | H145: =ROUND(H143*H144,2) -> 14.32
A147: 10 | B147: CODEVASF | E147: COMPOSIÇÃO DE PREÇO UNITÁRIO | I147: =H162 -> 1.12 | J147: =H164 -> 1.38
B148: OBRA: | C148: =$C$2 -> PAVIMENTAÇÃO ASFÁLTICA EM CBUQ - VIAS DIVERSAS – BAIRRO MAJOR SALVO (CORINTO / MG) | G148: DATA: | H148: =$H$2 -> SETEMBRO / 2023
B149: SERVIÇO: | C149: =VLOOKUP(A147,ORÇAMENTO!$A$10:$I$29,3) -> IMPRIMAÇÃO COM EMULSÃO ASFÁLTICA (EAI) | E149: SINAPI | F149: =VLOOKUP(A147,ORÇAMENTO!$A$10:$I$29,4) -> 96401 | G149: UNIDADE: | H149: =VLOOKUP(A147,ORÇAMENTO!$A$10:$I$29,5) -> M2
B151: TIPO ITEM | C151: CODIGO ITEM | D151: DESCRIÇÃO ITEM | E151: UNIDADE ITEM | F151: COEFICIENTE | G151: PRECO UNITARIO | H151: CUSTO TOTAL
B152: COMPOSICAO | C152: 5839 | D152: VASSOURA MECÂNICA REBOCÁVEL COM ESCOVA CILÍNDRICA, LARGURA ÚTIL DE VARRIMENTO DE 2,44 M | E152: CHP | F152: 0,0020000 | G152: 9.77 | H152: =ROUNDDOWN(F152*G152,2) -> 0.01
B153: COMPOSICAO | C153: 5841 | D153: VASSOURA MECÂNICA REBOCÁVEL COM ESCOVA CILÍNDRICA, LARGURA ÚTIL DE VARRIMENTO DE 2,44 M | E153: CHI | F153: 0,0040000 | G153: 4.65 | H153: 0.01
B154: INSUMO | C154: ANP | D154: EMULSÃO ASFÁLTICA PARA IMPRIMAÇÃO (FORNECIMENTO COM BDI DIFERENCIADO) | E154: T | F154: =1.3/1000 -> 0.0013 | H154: 0
B155: COMPOSICAO | C155: 83362 | D155: ESPARGIDOR DE ASFALTO PRESSURIZADO, TANQUE 6 M3 COM ISOLAÇÃO TÉRMICA, AQUECIDO COM 2 MAÇARICOS, COM BARRA ESPARGIDORA 3,60 M, MONTADO SOBRE CAMINHÃO TOCO, PBT 14.300 KG, POTÊNCIA 185 CV | E155: CHP | F155: 0,0010000 | G155: 232.92 | H155: 0.23
B156: COMPOSICAO | C156: 88316 | D156: SERVENTE COM ENCARGOS COMPLEMENTARES | E156: H | F156: 0,0060000 | G156: 19.76 | H156: 0.11
B157: COMPOSICAO | C157: 89035 | D157: TRATOR DE PNEUS, POTÊNCIA 85 CV, TRAÇÃO 4X4, PESO COM LASTRO DE 4.675 KG | E157: CHP | F157: 0,0020000 | G157: 119.96 | H157: 0.23
B158: COMPOSICAO | C158: 89036 | D158: TRATOR DE PNEUS, POTÊNCIA 85 CV, TRAÇÃO 4X4, PESO COM LASTRO DE 4.675 KG | E158: CHI | F158: 0,0040000 | G158: 52.19 | H158: 0.2
B159: COMPOSICAO | C159: 91486 | D159: ESPARGIDOR DE ASFALTO PRESSURIZADO, TANQUE 6 M3 COM ISOLAÇÃO TÉRMICA, AQUECIDO COM 2 MAÇARICOS, COM BARRA ESPARGIDORA 3,60 M, MONTADO SOBRE CAMINHÃO TOCO, PBT 14.300 KG, POTÊNCIA 185 CV | E159: CHI | F159: 0,0050000 | G159: 66.18 | H159: 0.33
H160: 0
B161: PRODUÇÃO DA EQUIPE | E161: 1 | F161: CUSTO | H161: =SUM(H152:H160) -> 1.12
B162: TOTAL | H162: =H161/E161 -> 1.12 | I162: OK
B163: BDI % | H163: =1+$M$1 -> 1.2332
B164: TOTAL DO SERVIÇO - R$ | H164: =ROUND(H162*H163,2) -> 1.38
A166: 11 | B166: CODEVASF | E166: COMPOSIÇÃO DE PREÇO UNITÁRIO | I166: =H181 -> 0.93 | J166: =H183 -> 1.15
B167: OBRA: | C167: =$C$2 -> PAVIMENTAÇÃO ASFÁLTICA EM CBUQ - VIAS DIVERSAS – BAIRRO MAJOR SALVO (CORINTO / MG) | G167: DATA: | H167: =$H$2 -> SETEMBRO / 2023
B168: SERVIÇO: | C168: =VLOOKUP(A166,ORÇAMENTO!$A$10:$I$29,3) -> PINTURA DE LIGAÇÃO COM EMULSÃO ASFÁLTICA RR-1C | E168: SINAPI | F168: =VLOOKUP(A166,ORÇAMENTO!$A$10:$I$29,4) -> 96402 | G168: UNIDADE: | H168: M2
B170: TIPO ITEM | C170: CODIGO ITEM | D170: DESCRIÇÃO ITEM | E170: UNIDADE ITEM | F170: COEFICIENTE | G170: PRECO UNITARIO | H170: CUSTO TOTAL
B171: COMPOSICAO | C171: 5839 | D171: VASSOURA MECÂNICA REBOCÁVEL COM ESCOVA CILÍNDRICA, LARGURA ÚTIL DE VARRIMENTO DE 2,44 M | E171: CHP | F171: 0,0020000 | G171: 9.77 | H171: =ROUNDDOWN(F171*G171,2) -> 0.01
B172: COMPOSICAO | C172: 5841 | D172: VASSOURA MECÂNICA REBOCÁVEL COM ESCOVA CILÍNDRICA, LARGURA ÚTIL DE VARRIMENTO DE 2,44 M | E172: CHI | F172: 0,0040000 | G172: 4.65 | H172: 0.01
B173: INSUMO | C173: ANP | D173: EMULSAO ASFALTICA CATIONICA RR-2C PARA USO EM PAVIMENTACAO ASFALTICA (COLETADO CAIXA NA ANP ACRESCIDO DE ICMS) | E173: KG | F173: 0,4500000 | H173: 0
B174: COMPOSICAO | C174: 83362 | D174: ESPARGIDOR DE ASFALTO PRESSURIZADO, TANQUE 6 M3 COM ISOLAÇÃO TÉRMICA, AQUECIDO COM 2 MAÇARICOS, COM BARRA ESPARGIDORA 3,60 M, MONTADO SOBRE CAMINHÃO TOCO, PBT 14.300 KG, POTÊNCIA 185 CV | E174: CHP | F174: 0,0004000 | G174: 232.92 | H174: 0.09
B175: COMPOSICAO | C175: 88316 | D175: SERVENTE COM ENCARGOS COMPLEMENTARES | E175: H | F175: 0,0055000 | G175: 19.76 | H175: 0.1
B176: COMPOSICAO | C176: 89035 | D176: TRATOR DE PNEUS, POTÊNCIA 85 CV, TRAÇÃO 4X4, PESO COM LASTRO DE 4.675 KG | E176: CHP | F176: 0,0017000 | G176: 119.96 | H176: 0.2
B177: COMPOSICAO | C177: 89036 | D177: TRATOR DE PNEUS, POTÊNCIA 85 CV, TRAÇÃO 4X4, PESO COM LASTRO DE 4.675 KG | E177: CHI | F177: 0,0038000 | G177: 52.19 | H177: 0.19
B178: COMPOSICAO | C178: 91486 | D178: ESPARGIDOR DE ASFALTO PRESSURIZADO, TANQUE 6 M3 COM ISOLAÇÃO TÉRMICA, AQUECIDO COM 2 MAÇARICOS, COM BARRA ESPARGIDORA 3,60 M, MONTADO SOBRE CAMINHÃO TOCO, PBT 14.300 KG, POTÊNCIA 185 CV | E178: CHI | F178: 0,0051000 | G178: 66.18 | H178: 0.33
H179: 0
B180: PRODUÇÃO DA EQUIPE | E180: 1 | F180: CUSTO | H180: =SUM(H171:H179) -> 0.93
B181: TOTAL | H181: =H180/E180 -> 0.93 | I181: OK
B182: BDI % | H182: =1+$M$1 -> 1.2332
B183: TOTAL DO SERVIÇO - R$ | H183: =ROUND(H181*H182,2) -> 1.15
A185: 12 | B185: CODEVASF | E185: COMPOSIÇÃO DE PREÇO UNITÁRIO | I185: =H203 -> 121.32 | J185: =H205 -> 149.61
B186: OBRA: | C186: =$C$2 -> PAVIMENTAÇÃO ASFÁLTICA EM CBUQ - VIAS DIVERSAS – BAIRRO MAJOR SALVO (CORINTO / MG) | G186: DATA: | H186: =$H$2 -> SETEMBRO / 2023
B187: SERVIÇO: | C187: =VLOOKUP(A185,ORÇAMENTO!$A$10:$I$29,3) -> EXECUÇÃO DE PAVIMENTO COM APLICAÇÃO DE CONCRETO ASFÁLTICO USINADO A QUENTE (CBUQ), CAMADA DE ROLAMENTO - EXCLUSIVE TRANSPORTE | E187: SINAPI | F187: =VLOOKUP(A185,ORÇAMENTO!$A$10:$I$29,4) -> 95995 | G187: UNIDADE: | H187: =VLOOKUP(A185,ORÇAMENTO!$A$10:$I$29,5) -> M3
B189: TIPO ITEM | C189: CODIGO ITEM | D189: DESCRIÇÃO ITEM | E189: UNIDADE ITEM | F189: COEFICIENTE | G189: PRECO UNITARIO | H189: CUSTO TOTAL
B190: INSUMO | C190: COTAÇÃO | D190: CONCRETO BETUMINOSO USINADO A QUENTE (CBUQ) PARA PAVIMENTACAO ASFALTICA, PADRAO DNIT, FAIXA C, COM CAP 50/70 - AQUISICAO POSTO USINA (FORNECIMENTO COM BDI DIFERENCIADO) | E190: T | F190: 2,5548000 | H190: =ROUNDDOWN(F190*G190,2) -> 0 | K190: 602.5
B191: COMPOSICAO | C191: 5835 | D191: VIBROACABADORA DE ASFALTO SOBRE ESTEIRAS, LARGURA DE PAVIMENTAÇÃO 1,90 M A 5,30 M, POTÊNCIA 105 HP CAPACIDADE 450 T/H | E191: CHP | F191: 0,0464000 | G191: 366,49 | H191: 17
B192: COMPOSICAO | C192: 5837 | D192: VIBROACABADORA DE ASFALTO SOBRE ESTEIRAS, LARGURA DE PAVIMENTAÇÃO 1,90 M A 5,30 M, POTÊNCIA 105 HP CAPACIDADE 450 T/H | E192: CHI | F192: 0,0949000 | G192: 147,82 | H192: 14.02
B193: COMPOSICAO | C193: 88314 | D193: RASTELEIRO COM ENCARGOS COMPLEMENTARES | E193: H | F193: 1,1301000 | G193: 26,52 | H193: 29.97
B194: COMPOSICAO | C194: 91386 | D194: CAMINHÃO BASCULANTE 10 M3, TRUCADO CABINE SIMPLES, PESO BRUTO TOTAL 23.000 KG, CARGA ÚTIL MÁXIMA 15.935 KG, DISTÂNCIA ENTRE EIXOS 4,80 M, POTÊNCIA 230 CV INCLUSIVE CAÇAMBA METÁLICA | E194: CHP | F194: 0,0464000 | G194: 228,50 | H194: 10.6
B195: COMPOSICAO | C195: 95631 | D195: ROLO COMPACTADOR VIBRATORIO TANDEM, ACO LISO, POTENCIA 125 HP, PESO SEM/COM LASTRO 10,20/11,65 T, LARGURA DE TRABALHO 1,73 M | E195: CHP | F195: 0,0805000 | G195: 210,29 | H195: 16.92
B196: COMPOSICAO | C196: 95632 | D196: ROLO COMPACTADOR VIBRATORIO TANDEM, ACO LISO, POTENCIA 125 HP, PESO SEM/COM LASTRO 10,20/11,65 T, LARGURA DE TRABALHO 1,73 M | E196: CHI | F196: 0,0607000 | G196: 83,23 | H196: 5.05
B197: COMPOSICAO | C197: 96155 | D197: TRATOR DE PNEUS COM POTÊNCIA DE 85 CV, TRAÇÃO 4X4, COM VASSOURA MECÂNICA ACOPLADA | E197: CHI | F197: 0,1071000 | G197: 56,63 | H197: 6.06
B198: COMPOSICAO | C198: 96157 | D198: TRATOR DE PNEUS COM POTÊNCIA DE 85 CV, TRAÇÃO 4X4, COM VASSOURA MECÂNICA ACOPLADA | E198: CHP | F198: 0,0341000 | G198: 128,67 | H198: 4.38
B199: COMPOSICAO | C199: 96463 | D199: ROLO COMPACTADOR DE PNEUS, ESTATICO, PRESSAO VARIAVEL, POTENCIA 110 HP, PESO SEM/COM LASTRO 10,8/27 T, LARGURA DE ROLAGEM 2,30 M | E199: CHP | F199: 0,0419000 | G199: 203,13 | H199: 8.51
B200: COMPOSICAO | C200: 96464 | D200: ROLO COMPACTADOR DE PNEUS, ESTATICO, PRESSAO VARIAVEL, POTENCIA 110 HP, PESO SEM/COM LASTRO 10,8/27 T, LARGURA DE ROLAGEM 2,30 M | E200: CHI | F200: 0,0990000 | G200: 89,07 | H200: 8.81
H201: 0
B202: PRODUÇÃO DA EQUIPE | E202: 1 | F202: CUSTO | H202: =SUM(H190:H201) -> 121.32
B203: TOTAL | H203: =H202/E202 -> 121.32 | I203: OK
B204: BDI % | H204: =1+$M$1 -> 1.2332
B205: TOTAL DO SERVIÇO - R$ | H205: =ROUND(H203*H204,2) -> 149.61
A207: 13 | B207: CODEVASF | E207: COMPOSIÇÃO DE PREÇO UNITÁRIO | I207: =H216 -> 0.65 | J207: =H218 -> 0.8
B208: OBRA: | C208: =$C$2 -> PAVIMENTAÇÃO ASFÁLTICA EM CBUQ - VIAS DIVERSAS – BAIRRO MAJOR SALVO (CORINTO / MG) | G208: DATA: | H208: =$H$2 -> SETEMBRO / 2023
B209: SERVIÇO: | C209: =VLOOKUP(A207,ORÇAMENTO!$A$10:$I$29,3) -> TRANSPORTE COM CAMINHÃO BASCULANTE, EM VIA URBANA PAVIMENTADA | E209: SINAPI | F209: =VLOOKUP(A207,ORÇAMENTO!$A$10:$I$29,4) -> 95427 | G209: UNIDADE: | H209: =VLOOKUP(A207,ORÇAMENTO!$A$10:$I$29,5) -> M3XKM
B211: TIPO ITEM | C211: CODIGO ITEM | D211: DESCRIÇÃO ITEM | E211: UNIDADE ITEM | F211: COEFICIENTE | G211: PRECO UNITARIO | H211: CUSTO TOTAL
B212: COMPOSICAO | C212: 89883 | D212: CAMINHÃO BASCULANTE 18 M3, COM CAVALO MECÂNICO DE CAPACIDADE MÁXIMA DE TRAÇÃO COMBINADO DE 45000 KG, POTÊNCIA 330 CV, INCLUSIVE SEMIREBOQUE COM CAÇAMBA METÁLICA | E212: CHP | F212: 0,0019000 | G212: 314,64 | H212: =ROUNDDOWN(F212*G212,2) -> 0.59
B213: COMPOSICAO | C213: 89884 | D213: CAMINHÃO BASCULANTE 18 M3, COM CAVALO MECÂNICO DE CAPACIDADE MÁXIMA DE TRAÇÃO COMBINADO DE 45000 KG, POTÊNCIA 330 CV, INCLUSIVE SEMIREBOQUE COM CAÇAMBA METÁLICA | E213: CHI | F213: 0,0008000 | G213: 86,36 | H213: =ROUNDDOWN(F213*G213,2) -> 0.06
H214: =ROUNDDOWN(F214*G214,2) -> 0
B215: PRODUÇÃO DA EQUIPE | E215: 1 | F215: CUSTO | H215: =SUM(H212:H214) -> 0.65
B216: TOTAL | H216: =H215/E215 -> 0.65 | I216: OK
B217: BDI % | H217: =1+$M$1 -> 1.2332
B218: TOTAL DO SERVIÇO - R$ | H218: =ROUND(H216*H217,2) -> 0.8
A220: 13.5 | B220: CODEVASF | E220: COMPOSIÇÃO DE PREÇO UNITÁRIO | I220: =H229 -> 0.96 | J220: =H231 -> 1.18
B221: OBRA: | C221: =$C$2 -> PAVIMENTAÇÃO ASFÁLTICA EM CBUQ - VIAS DIVERSAS – BAIRRO MAJOR SALVO (CORINTO / MG) | G221: DATA: | H221: =$H$2 -> SETEMBRO / 2023
B222: SERVIÇO: | C222: =VLOOKUP(A220,ORÇAMENTO!$A$10:$I$29,3) -> TRANSPORTE COM CAMINHÃO BASCULANTE, EM VIA URBANA EM REVESTIMENTO PRIMÁRIO | E222: SINAPI | F222: =VLOOKUP(A220,ORÇAMENTO!$A$10:$I$29,4) -> 95426 | G222: UNIDADE: | H222: =VLOOKUP(A220,ORÇAMENTO!$A$10:$I$29,5) -> M3XKM
B224: TIPO ITEM | C224: CODIGO ITEM | D224: DESCRIÇÃO ITEM | E224: UNIDADE ITEM | F224: COEFICIENTE | G224: PRECO UNITARIO | H224: CUSTO TOTAL
B225: COMPOSICAO | C225: 89883 | D225: CAMINHÃO BASCULANTE 18 M3, COM CAVALO MECÂNICO DE CAPACIDADE MÁXIMA DE TRAÇÃO COMBINADO DE 45000 KG, POTÊNCIA 330 CV, INCLUSIVE SEMIREBOQUE COM CAÇAMBA METÁLICA | E225: CHP | F225: 0.0025 | G225: 314,64 | H225: =ROUNDDOWN(F225*G225,2) -> 0.78
B226: COMPOSICAO | C226: 89884 | D226: CAMINHÃO BASCULANTE 18 M3, COM CAVALO MECÂNICO DE CAPACIDADE MÁXIMA DE TRAÇÃO COMBINADO DE 45000 KG, POTÊNCIA 330 CV, INCLUSIVE SEMIREBOQUE COM CAÇAMBA METÁLICA | E226: CHI | F226: 0,0022000 | G226: 86,36 | H226: =ROUNDDOWN(F226*G226,2) -> 0.18
H227: =ROUNDDOWN(F227*G227,2) -> 0
B228: PRODUÇÃO DA EQUIPE | E228: 1 | F228: CUSTO | H228: =SUM(H225:H227) -> 0.96
... 119 more rows

Sheet BDI SERV
B1: DETALHAMENTO DO BDI - SERVIÇOS
B4: Item | C4: Descrição dos Serviços | D4: % | E4: %
D5: PV | E5: CD
B7: 1 | C7: ADMINISTRAÇÃO CENTRAL | E7: 4.01
B8: 1.1 | C8: ESCRITÓRIO CENTRAL
B9: 1.2 | C9: VIAGENS
B10: 1.3 | C10: OUTROS
B12: 2 | C12: IMPOSTOS E TAXAS | D12: =SUM(D13:D16) -> 7.65 | E12: =SUM(E13:E16) -> 9.57
B13: 2.1 | C13: ISS (*) | D13: =5*0.8 -> 4 | E13: =ROUND(D13*1.2515,2) -> 5.01
B14: 2.2 | C14: PIS | D14: 0.65 | E14: =ROUND(D14*1.2515,2) -> 0.81
B15: 2.3 | C15: Cofins | D15: 3 | E15: =ROUND(D15*1.2515,2) -> 3.75
B16: 2.4 | C16: CONTRIBUIÇÃO PREVIDENCIÁRIA SOBRE A RENDA BRUTA | D16: 0 | E16: =ROUND(D16*1.2515,2) -> 0
B18: 3 | C18: TAXA DE RISCO | E18: =SUM(E19:E22) -> 0.96
B19: 3.1 | C19: SEGURO | E19: 0.2
B20: 3.2 | C20: RISCO | E20: 0.56
B21: 3.3 | C21: GARANTIA | E21: 0.2
B23: 4 | C23: DESPESAS FINANCEIRAS | E23: 1.11
B25: 5 | C25: LUCRO | E25: 7.3
C27: BDI - CALCULADO | E27: =ROUND((((1+(E7+E18)/100)*(1+E23/100)*(1+E25/100)/(1-D12/100)-1)*100),2) -> 23.32
A29: BDI = ((1+((AC+S+R+G)/100))x(1+DF/100)x(1+L/100)/(1-I/100)-1)*100
B31: BDI (CALCULADO): | D31: =ROUND((((1+((E7+E18)/100))*(1+E23/100)*(1+E25/100))/(1-D12/100)-1)*100,2) -> 23.32 | E31: %
A33: (*) ISS CONFORME LEI MUNICIPAL Nº 1.576 / 2009 e Lei Complementar nº 01/2019 - Considerando as deduções previstas no Art. 89 - § 1º (Dedução Simplificada de 20% sem necessidade de comprovação)
A37: BDI EM CONFORMIDADE COM OS ACÓRDÃOS Nº 2369/2011 e ACÓRDÃO Nº 2.622/2013 - TCU - PLENÁRIO

Sheet BDI FORN
B1: DETALHAMENTO DO BDI - FORNECIMENTO (MATERIAL ASFÁLTICO)
B4: Item | C4: Descrição dos Serviços | D4: % | E4: %
D5: PV | E5: CD
B7: 1 | C7: ADMINISTRAÇÃO CENTRAL | E7: 3.72
B8: 1.1 | C8: ESCRITÓRIO CENTRAL
B9: 1.2 | C9: VIAGENS
B10: 1.3 | C10: OUTROS
B12: 2 | C12: IMPOSTOS E TAXAS | D12: =SUM(D13:D16) -> 3.65 | E12: =SUM(E13:E16) -> 4.56
B13: 2.1 | C13: ISS (*) | E13: =ROUND(D13*1.2515,2) -> 0
B14: 2.2 | C14: PIS | D14: 0.65 | E14: =ROUND(D14*1.2515,2) -> 0.81
B15: 2.3 | C15: Cofins | D15: 3 | E15: =ROUND(D15*1.2515,2) -> 3.75
B16: 2.4 | C16: CONTRIBUIÇÃO PREVIDENCIÁRIA SOBRE A RENDA BRUTA | D16: 0 | E16: =ROUND(D16*1.2515,2) -> 0
B18: 3 | C18: TAXA DE RISCO | E18: =SUM(E19:E22) -> 0.82
B19: 3.1 | C19: SEGURO | E19: 0.16
B20: 3.2 | C20: RISCO | E20: 0.5
B21: 3.3 | C21: GARANTIA | E21: 0.16
B23: 4 | C23: DESPESAS FINANCEIRAS | E23: 0.94
B25: 5 | C25: LUCRO | E25: 5
C27: BDI - CALCULADO | E27: =ROUND((((1+(E7+E18)/100)*(1+E23/100)*(1+E25/100)/(1-D12/100)-1)*100),2) -> 15
A29: BDI = ((1+((AC+S+R+G)/100))x(1+DF/100)x(1+L/100)/(1-I/100)-1)*100
B31: BDI (CALCULADO): | D31: =ROUND((((1+((E7+E18)/100))*(1+E23/100)*(1+E25/100))/(1-D12/100)-1)*100,2) -> 15 | E31: %
A37: BDI EM CONFORMIDADE COM OS ACÓRDÃOS Nº 2369/2011 e ACÓRDÃO Nº 2.622/2013 - TCU - PLENÁRIO

Sheet CRONOGRAMA
B1: CRONOGRAMA FÍSICO-FINANCEIRO
B2: OBRA: | C2: =ORÇAMENTO!C5 -> PAVIMENTAÇÃO ASFÁLTICA EM CBUQ - VIAS DIVERSAS – BAIRRO MAJOR SALVO (CORINTO / MG) | F2: VALOR: | G2: =ORÇAMENTO!I37 -> 4944488.24
F3: PRAZO: | G3: 180 DIAS
B5: ITEM | C5: ETAPAS/DESCRIÇAO | D5: FISICO/ FINANCEIRO | E5: TOTAL ETAPAS | F5: MÊS 1 | G5: MÊS 2 | H5: MÊS 3 | I5: MÊS 4 | J5: MÊS 5 | K5: MÊS 6 | L5: TOTAL
A6: A | B6: =VLOOKUP(A6,ORÇAMENTO!$A$9:$I$37,2) -> 1 | C6: =VLOOKUP(A6,ORÇAMENTO!$A$9:$I$37,3) -> SERVIÇOS PRELIMINARES | D6: FISICO | E6: =ROUND(E7/$G$2,4) -> 0.067 | F6: 0.1 | G6: 0.2 | H6: 0.2 | I6: 0.2 | J6: 0.2 | K6: 0.1 | L6: =SUM(F6:K6) -> 1
D7: FINANCEIRO | E7: =ORÇAMENTO!I9 -> 331226.01 | F7: =ROUND($E$7*F6,2) -> 33122.6 | G7: 66245.2 | H7: 66245.2 | I7: 66245.2 | J7: 66245.2 | K7: 33122.6 | L7: =SUM(F7:K7) -> 331226
A8: B | B8: =VLOOKUP(A8,ORÇAMENTO!$A$9:$I$37,2) -> 2 | C8: =VLOOKUP(A8,ORÇAMENTO!$A$9:$I$37,3) -> TERRAPLANAGEM E PAVIMENTAÇÃO | D8: FISICO | E8: =ROUND(E9/$G$2,4) -> 0.1257 | F8: 0.1 | G8: 0.2 | H8: 0.2 | I8: 0.2 | J8: 0.2 | K8: 0.1 | L8: =SUM(F8:K8) -> 1
D9: FINANCEIRO | E9: =ORÇAMENTO!I15 -> 621389.3 | F9: =ROUND($E$9*F8,2) -> 62138.93 | G9: 124277.86 | H9: 124277.86 | I9: 124277.86 | J9: 124277.86 | K9: 62138.93 | L9: =SUM(F9:K9) -> 621389.3
A10: C | B10: =VLOOKUP(A10,ORÇAMENTO!$A$9:$I$37,2) -> 3 | C10: =VLOOKUP(A10,ORÇAMENTO!$A$9:$I$37,3) -> TRANSPORTE DE MATERIAIS | D10: FISICO | E10: =ROUND(E11/$G$2,4) -> 0.0347 | F10: 0.1 | G10: 0.2 | H10: 0.2 | I10: 0.2 | J10: 0.2 | K10: 0.1 | L10: =SUM(F10:K10) -> 1
D11: FINANCEIRO | E11: =ORÇAMENTO!I23 -> 171736.99 | F11: =ROUND($E$11*F10,2) -> 17173.7 | G11: 34347.4 | H11: 34347.4 | I11: 34347.4 | J11: 34347.4 | K11: 17173.7 | L11: =SUM(F11:K11)-0.04 -> 171736.96
A12: D | B12: =VLOOKUP(A12,ORÇAMENTO!$A$9:$I$37,2) -> 4 | C12: =VLOOKUP(A12,ORÇAMENTO!$A$9:$I$37,3) -> OBRAS COMPLEMENTARES | D12: FISICO | E12: =ROUND(E13/$G$2,4) -> 0.1934 | F12: 0 | G12: 0.2 | H12: 0.2 | I12: 0.2 | J12: 0.2 | K12: 0.2 | L12: =SUM(F12:K12) -> 1
D13: FINANCEIRO | E13: =ORÇAMENTO!I28 -> 956198.17 | F13: =ROUND($E$13*F12,2) -> 0 | G13: 191239.63 | H13: 191239.63 | I13: 191239.63 | J13: 191239.63 | K13: 191239.63 | L13: =SUM(F13:K13)-0.02 -> 956198.13
A14: E | B14: =VLOOKUP(A14,ORÇAMENTO!$A$9:$I$37,2) -> 5 | C14: =VLOOKUP(A14,ORÇAMENTO!$A$9:$I$37,3) -> FORNECIMENTOS - MATERIAL ASFÁLTICO (BDI DIFERENCIADO) | D14: FISICO | E14: =ROUND(E15/$G$2,4) -> 0.5792 | F14: 0.1 | G14: 0.2 | H14: 0.2 | I14: 0.2 | J14: 0.2 | K14: 0.1 | L14: =SUM(F14:K14) -> 1
D15: FINANCEIRO | E15: =ORÇAMENTO!I33 -> 2863937.77 | F15: =ROUND($E$15*F14,2) -> 286393.78 | G15: 572787.55 | H15: 572787.55 | I15: 572787.55 | J15: 572787.55 | K15: 286393.78 | L15: =SUM(F15:K15)-0.02 -> 2863937.74
B16: TOTAL | D16: FISICO | E16: =SUM(F16:K16) -> 0.9999999939 | F16: =F17/$E$17 -> 0.08066133251 | G16: 0.1999999984 | H16: 0.1999999984 | I16: 0.1999999984 | J16: 0.1999999984 | K16: 0.1193386679 | L16: =SUM(F16:K16) -> 0.9999999939
D17: FINANCEIRO | E17: =E11+E9+E7+E13+E15 -> 4944488.24 | F17: 398829.01 | G17: 988897.64 | H17: 988897.64 | I17: 988897.64 | J17: 988897.64 | K17: 590068.64 | L17: =SUM(F17:K17)+0.03 -> 4944488.24
B19: OBSERVAÇÕES:
